bitfinex/quotes_BTCUSD_20240911
["timestamp","ask_amount","ask_price","bid_price","bid_amount"]
[1726072961787,1.53827075,57201.0,57200.0,0.028]
[1726072962014,1.53827075,57201.0,57200.0,0.014]
[1726072962657,1.51260627,57201.0,57200.0,0.014]
[1726072962873,0.52453,57194.0,57193.0,0.001636]
[1726072963003,0.75056327,57194.0,57193.0,0.001636]
[1726072963201,1.10025027,57194.0,57193.0,0.001636]
[1726072963837,0.75056327,57194.0,57193.0,0.001636]
[1726072964248,0.22603327,57194.0,57193.0,0.001636]
[1726072964474,0.42829438,57194.0,57193.0,0.015636]
[1726072964677,0.77798138,57194.0,57193.0,0.015636]
[1726072965302,1.12766838,57194.0,57193.0,0.015636]
[1726072965516,1.54315538,57194.0,57193.0,0.026636]
[1726072965720,1.19346838,57194.0,57193.0,0.026636]
[1726072966980,1.19346838,57194.0,57193.0,0.012636]
[1726072967196,1.19446838,57194.0,57193.0,0.012636]
[1726072967340,1.19346838,57194.0,57193.0,0.001636]
[1726072967974,0.42829438,57194.0,57193.0,0.001636]
[1726072968381,1.12766838,57194.0,57193.0,0.001636]
[1726072968754,1.55395538,57194.0,57193.0,0.001636]
[1726072968968,1.72005538,57194.0,57193.0,0.001636]
[1726072969397,1.72005538,57194.0,57193.0,0.003636]
[1726072969615,2.06974238,57194.0,57193.0,0.003636]
[1726072969853,1.94524962,57194.0,57193.0,0.003636]
[1726072970063,0.0653,57174.0,57172.0,0.05149469]
[1726072970275,0.0653,57174.0,57164.0,0.1451]
[1726072970276,0.00196624,57182.0,57173.0,0.52535264]
[1726072970483,0.00196624,57182.0,57164.0,0.19659469]
[1726072970484,0.22603327,57173.0,57166.0,0.349857]
[1726072970705,0.22603327,57173.0,57169.0,0.349839]
[1726072970931,0.22603327,57173.0,57166.0,0.349857]
[1726072970932,0.174915,57171.0,57166.0,0.524784]
[1726072971200,0.2486366,57173.0,57164.0,0.1451]
[1726072971425,0.2486366,57173.0,57169.0,0.174919]
[1726072971426,0.22603327,57173.0,57169.0,0.174919]
[1726072971644,0.40094127,57173.0,57169.0,0.174919]
[1726072972080,0.22603327,57173.0,57166.0,0.008]
[1726072972307,0.22603327,57173.0,57172.0,0.17491]
[1726072972518,0.22603327,57173.0,57169.0,0.349838]
[1726072972721,0.22603327,57173.0,57171.0,0.174912]
[1726072973791,0.22703327,57173.0,57172.0,0.17491]
[1726072973999,0.001,57173.0,57172.0,1.012052]
[1726072974208,0.001,57173.0,57172.0,1.361873]
[1726072974417,0.174881,57182.0,57178.0,0.174892]
[1726072975035,0.174876,57184.0,57179.0,0.174889]
[1726072975218,0.174878,57183.0,57179.0,0.174889]
[1726072976083,0.349745,57185.0,57178.0,0.002]
[1726072976299,0.524667,57179.0,57178.0,0.002]
[1726072976521,0.874445,57179.0,57178.0,0.002]
[1726072976938,0.874445,57179.0,57178.0,0.009]
[1726072977151,0.874445,57179.0,57178.0,0.002]
[1726072977581,0.875445,57179.0,57178.0,0.012]
[1726072978007,0.875445,57179.0,57178.0,0.01]
[1726072978219,1.225223,57179.0,57178.0,0.01]
[1726072978454,1.45125627,57179.0,57178.0,0.01]
[1726072978921,1.10147827,57179.0,57178.0,0.01]
[1726072979365,0.40192227,57179.0,57178.0,0.01]
[1726072979605,0.175889,57179.0,57178.0,0.01]
[1726072979838,0.75170027,57179.0,57178.0,0.01]
[1726072980071,0.40192227,57179.0,57178.0,0.01]
[1726072980325,0.02842532,57179.0,57178.0,0.01]
[1726072980815,0.02842532,57179.0,57178.0,0.015]
[1726072981549,0.02842532,57179.0,57178.0,0.1773889]
[1726072982062,0.02842532,57179.0,57178.0,0.9589929]
[1726072982567,0.02842532,57179.0,57178.0,1.0246929]
[1726072982784,0.02842532,57179.0,57178.0,1.51192589]
[1726072983017,0.001,57179.0,57178.0,1.3744769]
[1726072984096,0.001,57179.0,57178.0,1.7593509]
[1726072984752,0.001,57179.0,57178.0,2.08538417]
[1726072984963,0.4721,57191.0,57190.0,1.369988]
[1726072985204,0.000818,57194.0,57193.0,0.874232]
[1726072985422,0.000818,57194.0,57193.0,1.223925]
[1726072985862,0.02823308,57194.0,57193.0,1.223925]
[1726072986091,0.02823308,57194.0,57193.0,1.7177611]
[1726072986307,0.02823308,57194.0,57193.0,1.3680681]
[1726072986983,0.02823308,57194.0,57193.0,1.7177611]
[1726072987197,0.000818,57194.0,57193.0,1.7177611]
[1726072987410,0.000818,57194.0,57193.0,1.7187611]
[1726072987627,0.000818,57194.0,57193.0,1.7417611]
[1726072987849,0.000818,57194.0,57193.0,2.01793065]
[1726072988043,0.000818,57194.0,57193.0,2.03193065]
[1726072988264,0.001818,57194.0,57193.0,2.04593065]
[1726072989026,0.001818,57194.0,57193.0,1.8677611]
[1726072989275,0.001818,57194.0,57193.0,1.8447611]
[1726072991673,0.001818,57194.0,57193.0,2.1944541]
[1726072991878,0.001818,57194.0,57193.0,1.8447611]
[1726072992317,0.000819,57201.0,57200.0,1.223775]
[1726072992546,0.000819,57201.0,57200.0,0.874125]
[1726072992975,0.000819,57201.0,57200.0,1.012325]
[1726072993192,0.000819,57201.0,57200.0,1.361975]
[1726072993406,0.000819,57201.0,57200.0,1.4632075]
[1726072993620,0.000819,57201.0,57200.0,1.4692075]
[1726072993840,0.000819,57201.0,57200.0,1.367975]
[1726072994726,0.001819,57201.0,57200.0,1.377975]
[1726072996019,0.001819,57201.0,57200.0,1.37746168]
[1726073002621,0.001819,57201.0,57200.0,1.72711168]
[1726073004538,0.001819,57201.0,57200.0,1.75011168]
[1726073004744,0.001819,57201.0,57200.0,1.82711168]
[1726073005364,0.0016523,57201.0,57200.0,1.81711168]
[1726073005631,0.0016523,57201.0,57200.0,1.82711168]
[1726073005839,0.0026523,57201.0,57200.0,1.82711168]
[1726073006043,0.0026523,57201.0,57200.0,1.98728123]
[1726073006248,0.0036523,57201.0,57200.0,1.83111168]
[1726073006903,0.0036523,57201.0,57200.0,1.82511168]
[1726073007110,0.0036523,57201.0,57200.0,1.83911168]
[1726073007314,0.0025777,57205.0,57204.0,0.874062]
[1726073007942,0.0025777,57205.0,57204.0,1.223687]
[1726073008563,0.0025777,57205.0,57204.0,0.874062]
[1726073008773,0.22861097,57205.0,57200.0,0.014]
[1726073008994,0.22861097,57205.0,57204.0,0.014]
[1726073008995,0.1773877,57205.0,57204.0,0.014]
[1726073009218,1.10265897,57205.0,57204.0,0.014]
[1726073009463,1.10265897,57205.0,57204.0,0.028]
[1726073009663,0.82863997,57205.0,57204.0,0.014]
[1726073009874,0.22861097,57205.0,57204.0,0.349625]
[1726073010082,0.22861097,57205.0,57204.0,0.524437]
[1726073010288,0.22861097,57205.0,57204.0,0.001]
[1726073010809,0.22861097,57205.0,57203.0,0.174815]
[1726073011034,0.22861097,57205.0,57204.0,0.001]
[1726073011035,0.22961097,57205.0,57204.0,0.001]
[1726073011267,0.5280057,57205.0,57204.0,0.001]
[1726073011491,1.24215797,57205.0,57204.0,0.001]
[1726073011716,1.59177697,57205.0,57204.0,0.001]
[1726073011938,1.59177697,57205.0,57204.0,0.008]
[1726073012425,1.24115797,57205.0,57204.0,0.007]
[1726073012647,0.349632,57203.0,57196.0,0.349674]
[1726073012868,0.22603327,57200.0,57196.0,0.349674]
[1726073013353,0.22603327,57200.0,57186.0,0.0795]
[1726073013589,0.22603327,57195.0,57187.0,0.349727]
[1726073013834,0.22603327,57195.0,57186.0,0.0795]
[1726073014047,0.22603327,57199.0,57198.0,0.349662]
[1726073014269,0.22603327,57199.0,57198.0,0.524493]
[1726073014707,0.22603327,57203.0,57201.0,0.174821]
[1726073014942,0.22603327,57203.0,57201.0,0.17482]
[1726073015160,0.22603327,57203.0,57196.0,0.350669]
[1726073015161,0.0025777,57205.0,57204.0,0.174812]
[1726073015398,0.0025777,57205.0,57204.0,0.524437]
[1726073015578,0.0025777,57205.0,57204.0,0.874062]
[1726073016063,0.02998828,57205.0,57204.0,0.874062]
[1726073016925,0.03198828,57205.0,57204.0,1.223687]
[1726073017201,0.03198828,57205.0,57204.0,0.874062]
[1726073017423,0.03398828,57205.0,57204.0,0.874062]
[1726073018265,0.03198828,57205.0,57204.0,0.874062]
[1726073018477,0.03198828,57205.0,57204.0,0.881062]
[1726073018876,0.25602155,57205.0,57204.0,0.531437]
[1726073019340,0.25602155,57205.0,57204.0,0.535437]
[1726073019813,0.25602155,57205.0,57204.0,0.185812]
[1726073020024,0.25602155,57205.0,57204.0,0.535437]
[1726073021365,0.22861097,57205.0,57204.0,0.535437]
[1726073021787,0.22861097,57205.0,57204.0,0.011]
[1726073021788,1.10265797,57205.0,57204.0,0.011]
[1726073022004,1.16555797,57205.0,57204.0,0.011]
[1726073022936,1.18007762,57205.0,57204.0,0.007]
[1726073023362,0.83045862,57205.0,57204.0,0.007]
[1726073023582,0.30603062,57205.0,57204.0,0.007]
[1726073023816,0.83245862,57205.0,57204.0,0.007]
[1726073024023,0.48283962,57205.0,57204.0,0.007]
[1726073024230,0.48283962,57205.0,57200.0,0.174822]
[1726073024231,0.174815,57204.0,57200.0,0.174822]
[1726073024441,0.22603327,57201.0,57199.0,0.176463]
[1726073024649,0.01451965,57200.0,57199.0,0.176463]
[1726073025311,0.01451965,57200.0,57199.0,0.001636]
[1726073025527,0.22603327,57201.0,57199.0,0.001636]
[1726073025733,0.01450585,57200.0,57199.0,0.005636]
[1726073025949,0.01450585,57200.0,57199.0,0.176464]
[1726073026160,0.01450585,57200.0,57199.0,0.181464]
[1726073026371,0.01450585,57200.0,57199.0,0.882776]
[1726073026593,0.01450585,57200.0,57199.0,0.961576]
[1726073026800,0.01450585,57200.0,57199.0,1.311232]
[1726073027447,0.01450585,57200.0,57199.0,1.306232]
[1726073027690,0.01450585,57200.0,57199.0,1.310232]
[1726073028164,0.01450585,57200.0,57199.0,0.956576]
[1726073028427,0.01450585,57200.0,57199.0,0.961576]
[1726073028871,0.01450585,57200.0,57199.0,0.008636]
[1726073028872,0.2818423,57200.0,57199.0,0.008636]
[1726073029312,0.2818423,57200.0,57199.0,0.183464]
[1726073029313,0.24053912,57200.0,57199.0,0.183464]
[1726073029526,0.22603327,57200.0,57199.0,0.183464]
[1726073030240,0.76501681,57200.0,57199.0,0.008636]
[1726073030445,0.24054181,57200.0,57199.0,0.008636]
[1726073030661,0.24054181,57200.0,57199.0,0.183464]
[1726073031570,0.24054181,57200.0,57199.0,0.008636]
[1726073031780,0.26795542,57200.0,57199.0,0.008636]
[1726073032027,0.26795542,57200.0,57199.0,0.882776]
[1726073032028,0.24054181,57200.0,57199.0,0.882776]
[1726073032270,0.0033957,57205.0,57199.0,0.882776]
[1726073032271,0.22603327,57204.0,57199.0,0.882776]
[1726073032505,0.22603327,57204.0,57203.0,0.174816]
[1726073032736,0.24054107,57204.0,57203.0,0.174816]
[1726073033223,0.24054107,57204.0,57203.0,0.87408]
[1726073033434,0.24054107,57204.0,57203.0,0.174816]
[1726073033648,0.24254107,57204.0,57203.0,0.174816]
[1726073034580,0.41735507,57204.0,57200.0,0.174823]
[1726073034808,0.41735507,57204.0,57200.0,0.349646]
[1726073034809,0.0145078,57203.0,57200.0,0.349646]
[1726073035039,0.25544613,57204.0,57203.0,0.174816]
[1726073035291,0.25544613,57204.0,57201.0,0.174821]
[1726073035759,0.26795811,57204.0,57200.0,0.05171086]
[1726073036033,0.26795811,57204.0,57202.0,0.174816]
[1726073036256,0.26795811,57204.0,57200.0,0.40135586]
[1726073036257,0.22603327,57202.0,57200.0,0.05171086]
[1726073036553,0.22603327,57202.0,57201.0,0.524466]
[1726073036971,0.22603327,57202.0,57201.0,0.528466]
[1726073037260,0.22603327,57202.0,57201.0,0.178822]
[1726073037733,0.40085227,57202.0,57201.0,0.004]
[1726073037980,0.76499875,57202.0,57201.0,0.05571086]
[1726073038419,0.76499875,57202.0,57201.0,0.06071086]
[1726073038685,1.11463675,57202.0,57201.0,0.06671086]
[1726073038913,0.76499875,57202.0,57201.0,0.06671086]
[1726073039149,0.76499875,57202.0,57201.0,0.015]
[1726073039608,0.90229875,57202.0,57201.0,0.015]
[1726073039857,1.25193675,57202.0,57201.0,0.015]
[1726073040092,1.23742827,57202.0,57201.0,0.015]
[1726073040341,1.25194505,57202.0,57201.0,0.015]
[1726073041283,1.17634505,57202.0,57201.0,0.015]
[1726073041529,1.52598305,57202.0,57201.0,0.015]
[1726073041782,1.62598305,57202.0,57201.0,0.006]
[1726073042030,1.62598305,57202.0,57199.0,0.001636]
[1726073042031,0.174823,57201.0,57199.0,0.001636]
[1726073042288,0.24254991,57202.0,57199.0,0.001636]
[1726073042527,0.41936891,57202.0,57201.0,0.001]
[1726073042792,0.23003327,57202.0,57201.0,0.175822]
[1726073043039,0.23003327,57202.0,57200.0,0.174824]
[1726073043040,0.24254016,57202.0,57200.0,0.174824]
[1726073043269,0.01450689,57201.0,57199.0,0.176464]
[1726073043523,0.01450689,57200.0,57199.0,0.176464]
[1726073044249,0.01450689,57200.0,57199.0,0.001636]
[1726073044482,0.18933189,57200.0,57199.0,0.001636]
[1726073045188,0.01450689,57200.0,57199.0,0.005636]
[1726073045649,0.0145109,57200.0,57199.0,0.005636]
[1726073046148,0.0145109,57200.0,57199.0,0.53012]
[1726073046858,0.0145109,57200.0,57199.0,0.181464]
[1726073047790,0.0145109,57200.0,57199.0,0.880776]
[1726073048535,0.24054417,57200.0,57199.0,0.181464]
[1726073048810,0.80957512,57200.0,57199.0,0.006636]
[1726073049005,1.15922512,57200.0,57199.0,0.006636]
[1726073049277,0.80957512,57200.0,57199.0,0.006636]
[1726073049508,0.80956875,57200.0,57199.0,0.006636]
[1726073049733,1.15921875,57200.0,57199.0,0.006636]
[1726073049962,0.80956875,57200.0,57199.0,0.006636]
[1726073050453,1.15921875,57200.0,57199.0,0.006636]
[1726073050935,1.50886875,57200.0,57199.0,0.006636]
[1726073051429,1.50886875,57200.0,57186.0,0.05183422]
[1726073051430,0.174864,57187.0,57186.0,0.05183422]
[1726073051659,0.174874,57184.0,57183.0,0.05183422]
[1726073051910,0.174874,57184.0,57182.0,0.07775133]
[1726073051911,0.174877,57183.0,57182.0,0.05183422]
[1726073052134,0.524631,57183.0,57182.0,0.05183422]
[1726073052377,1.26869495,57183.0,57182.0,0.05183422]
[1726073052624,1.26869495,57183.0,57179.0,0.10366845]
[1726073052625,0.236662,57183.0,57179.0,0.05183422]
[1726073052864,1.287123,57179.0,57178.0,0.05347022]
[1726073053089,0.937145,57179.0,57178.0,0.001636]
[1726073053315,1.31986377,57179.0,57178.0,0.001636]
[1726073053544,1.41986377,57179.0,57178.0,0.001636]
[1726073053792,1.80164177,57179.0,57178.0,0.001636]
[1726073054053,1.10070827,57164.0,57163.0,0.0042137]
[1726073054730,1.45057827,57164.0,57163.0,0.0042137]
[1726073054988,1.14526422,57164.0,57163.0,0.0042137]
[1726073055258,1.49513422,57164.0,57163.0,0.0042137]
[1726073055587,1.01336,57152.0,57151.0,0.0025777]
[1726073055764,1.363304,57152.0,57151.0,0.0025777]
[1726073056008,1.49824477,57152.0,57151.0,0.0025777]
[1726073056272,1.52824477,57152.0,57151.0,0.0025777]
[1726073056517,1.52824477,57152.0,57142.0,0.001636]
[1726073056518,0.874982,57144.0,57142.0,0.001636]
[1726073056770,0.75102227,57144.0,57142.0,0.001636]
[1726073057244,1.23045989,57144.0,57142.0,0.001636]
[1726073057495,1.62300884,57144.0,57142.0,0.001636]
[1726073058151,1.62500884,57144.0,57142.0,0.001636]
[1726073058475,1.62600884,57144.0,57142.0,0.001636]
[1726073059250,1.62300884,57144.0,57142.0,0.001636]
[1726073059485,1.63100884,57144.0,57142.0,0.001636]
[1726073059730,0.26147789,57144.0,57142.0,0.001636]
[1726073059973,0.43647389,57144.0,57142.0,0.001636]
[1726073060196,0.26147789,57144.0,57142.0,0.176637]
[1726073060667,0.26147789,57144.0,57142.0,0.001636]
[1726073060903,0.03544462,57144.0,57143.0,0.176635]
[1726073061431,0.03544462,57144.0,57143.0,0.876633]
[1726073061432,0.008,57144.0,57143.0,0.876633]
[1726073061686,0.0629,57163.0,57143.0,0.876633]
[1726073061687,0.22603327,57156.0,57152.0,0.174971]
[1726073061967,0.174967,57154.0,57150.0,0.317477]
[1726073062180,0.22603327,57156.0,57150.0,0.1425]
[1726073062181,0.174969,57153.0,57150.0,0.1425]
[1726073062448,0.22603327,57152.0,57150.0,0.1425]
[1726073062663,0.22603327,57152.0,57150.0,0.1415]
[1726073062895,0.174975,57151.0,57150.0,0.1415]
[1726073063118,0.524925,57151.0,57150.0,0.1415]
[1726073063414,0.524925,57151.0,57143.0,0.001636]
[1726073063415,0.22603327,57152.0,57144.0,0.0777]
[1726073063659,0.174993,57145.0,57144.0,0.0767]
[1726073063912,0.40102627,57145.0,57144.0,0.0767]
[1726073064388,0.42846675,57145.0,57144.0,0.0767]
[1726073064851,0.25347375,57145.0,57144.0,0.0767]
[1726073065097,0.02744048,57145.0,57144.0,0.0767]
[1726073065353,0.02744048,57145.0,57144.0,0.251696]
[1726073065611,0.02744048,57145.0,57144.0,0.313896]
[1726073065887,0.02744048,57145.0,57144.0,1.011882]
[1726073066128,0.349905,57159.0,57149.0,0.349961]
[1726073066129,0.22603327,57157.0,57149.0,0.349961]
[1726073066378,0.174971,57153.0,57145.0,0.349984]
[1726073066652,0.174962,57156.0,57148.0,0.0768]
[1726073066879,0.174962,57156.0,57152.0,0.17497]
[1726073066880,0.20239908,57156.0,57152.0,0.17497]
[1726073067131,0.20239908,57156.0,57152.0,0.17397]
[1726073067374,0.20239908,57156.0,57153.0,0.174968]
[1726073067375,0.02743708,57156.0,57153.0,0.174968]
[1726073067588,0.02743708,57156.0,57148.0,0.0758]
[1726073067816,0.03043708,57156.0,57155.0,0.238862]
[1726073068066,0.03043708,57156.0,57155.0,0.0639]
[1726073068320,0.20239608,57156.0,57155.0,0.0639]
[1726073068559,0.174968,57154.0,57151.0,0.001638]
[1726073068818,0.22603327,57153.0,57152.0,0.174971]
[1726073069049,0.20521708,57156.0,57152.0,0.174971]
[1726073069269,0.20621608,57156.0,57155.0,0.011]
[1726073069971,0.03125608,57156.0,57155.0,0.011]
[1726073070200,0.20521508,57156.0,57155.0,0.011]
[1726073070440,0.20621508,57156.0,57155.0,0.016]
[1726073070643,0.55610032,57156.0,57155.0,0.005]
[1726073070902,1.25593832,57156.0,57155.0,0.005]
[1726073071160,1.31963832,57156.0,57155.0,0.005]
[1726073071400,1.39220124,57156.0,57155.0,0.005]
[1726073071640,1.39320124,57156.0,57155.0,0.015]
[1726073071872,1.42320124,57156.0,57155.0,0.015]
[1726073072129,1.42320124,57156.0,57155.0,0.01]
[1726073072130,1.42220124,57156.0,57155.0,0.01]
[1726073072367,1.42220124,57156.0,57151.0,0.001638]
[1726073072368,1.224804,57152.0,57151.0,0.001638]
[1726073072587,0.40100527,57152.0,57151.0,0.001638]
[1726073072833,0.40100527,57152.0,57151.0,0.082138]
[1726073073046,0.75094927,57152.0,57151.0,0.082138]
[1726073073731,0.40100527,57152.0,57151.0,0.082138]
[1726073074415,0.40100527,57152.0,57151.0,0.089138]
[1726073074615,0.42844363,57152.0,57151.0,0.086138]
[1726073074884,0.77938763,57152.0,57151.0,0.087138]
[1726073075093,0.25447163,57152.0,57151.0,0.087138]
[1726073075313,0.25447163,57152.0,57151.0,0.154638]
[1726073075524,0.42944363,57152.0,57151.0,0.154638]
[1726073076189,1.12833163,57152.0,57151.0,0.005638]
[1726073076843,0.42844363,57152.0,57151.0,0.005638]
[1726073077292,0.77838763,57152.0,57151.0,0.001638]
[1726073077512,0.42844363,57152.0,57151.0,0.001638]
[1726073077718,0.78038763,57152.0,57151.0,0.012638]
[1726073077961,0.77938763,57152.0,57151.0,0.005638]
[1726073078185,0.77938763,57152.0,57151.0,0.011638]
[1726073078439,1.12933163,57152.0,57151.0,0.011638]
[1726073078647,1.13033163,57152.0,57151.0,0.015638]
[1726073080621,1.54417563,57152.0,57151.0,0.015638]
[1726073081397,1.51673727,57152.0,57151.0,0.015638]
[1726073081598,1.51573727,57152.0,57151.0,0.005638]
[1726073081808,1.61573727,57152.0,57151.0,0.010638]
[1726073082029,1.61673727,57152.0,57151.0,0.006638]
[1726073082510,1.61673727,57152.0,57151.0,0.008638]
[1726073082977,1.64673727,57152.0,57151.0,0.008638]
[1726073083210,1.64473727,57152.0,57151.0,0.008638]
[1726073083444,0.174993,57145.0,57144.0,0.0017549]
[1726073083671,1.23296451,57145.0,57144.0,0.0017549]
[1726073083891,1.58295051,57145.0,57144.0,0.0017549]
[1726073084340,1.55295051,57145.0,57144.0,0.0017549]
[1726073084594,1.58039434,57145.0,57144.0,0.0017549]
[1726073084834,1.5784281,57145.0,57144.0,0.0017549]
[1726073085076,1.5794281,57145.0,57144.0,0.0047549]
[1726073085295,1.5804281,57145.0,57144.0,0.0107549]
[1726073085513,1.5784281,57145.0,57144.0,0.0017549]
[1726073085974,1.5794281,57145.0,57144.0,0.0097549]
[1726073086170,1.5784281,57145.0,57144.0,0.0047549]
[1726073087170,1.5784281,57145.0,57144.0,0.0017549]
[1726073087562,1.5794281,57145.0,57144.0,0.0017549]
[1726073088021,1.5824281,57145.0,57144.0,0.0017549]
[1726073088530,1.5844281,57145.0,57144.0,0.0017549]
[1726073088739,1.5854281,57145.0,57144.0,0.0017549]
[1726073088978,1.5834281,57145.0,57144.0,0.0017549]
[1726073089188,1.5854281,57145.0,57144.0,0.0017549]
[1726073089562,1.9354141,57145.0,57144.0,0.0017549]
[1726073090485,1.9414141,57145.0,57144.0,0.0017549]
[1726073090720,1.9284141,57145.0,57144.0,0.0017549]
[1726073090955,1.5784281,57145.0,57144.0,0.0037549]
[1726073091193,1.5794281,57145.0,57144.0,0.0067549]
[1726073091419,1.55198427,57145.0,57144.0,0.0067549]
[1726073091897,0.75201227,57145.0,57144.0,0.0067549]
[1726073092137,0.75201227,57145.0,57144.0,0.0891549]
[1726073092376,0.22703327,57145.0,57144.0,0.2641509]
[1726073092610,0.1,57153.0,57144.0,0.2641509]
[1726073092611,0.22603327,57149.0,57147.0,0.174986]
[1726073092842,0.22603327,57149.0,57144.0,0.0891549]
[1726073093068,0.40101527,57149.0,57145.0,0.174992]
[1726073093294,0.22603327,57149.0,57145.0,0.174992]
[1726073093834,0.22603327,57149.0,57144.0,0.4391409]
[1726073094064,0.22603327,57145.0,57144.0,0.0861549]
[1726073094306,0.40102627,57145.0,57144.0,0.0861549]
[1726073094541,0.75101227,57145.0,57144.0,0.0857929]
[1726073094765,0.75101227,57145.0,57144.0,0.0033929]
[1726073094766,1.12843808,57145.0,57144.0,0.0033929]
[1726073095023,0.526989,57144.0,57143.0,0.001636]
[1726073095269,1.324975,57144.0,57143.0,0.001636]
[1726073095501,1.326975,57144.0,57143.0,0.001636]
[1726073096191,0.906997,57143.0,57142.0,0.001636]
[1726073096425,0.906997,57143.0,57135.0,0.001636]
[1726073096426,0.557007,57142.0,57135.0,0.05300128]
[1726073096660,1.355017,57142.0,57135.0,0.001636]
[1726073097632,1.356017,57142.0,57137.0,0.05136528]
[1726073098107,1.355017,57142.0,57137.0,0.05136528]
[1726073098567,1.331017,57142.0,57140.0,0.05136528]
[1726073098786,0.981012,57142.0,57140.0,0.05136528]
[1726073099221,1.331017,57142.0,57140.0,0.05136528]
[1726073099450,1.331017,57142.0,57141.0,0.39917674]
[1726073099689,1.331017,57142.0,57141.0,0.05360258]
[1726073100431,0.281002,57142.0,57141.0,0.001636]
[1726073100653,0.002,57142.0,57141.0,0.71261863]
[1726073100881,0.3105211,57149.0,57142.0,0.175001]
[1726073101117,0.4855031,57149.0,57146.0,0.05192466]
[1726073101339,0.3105211,57149.0,57148.0,0.524952]
[1726073101569,0.350739,57156.0,57150.0,0.144]
[1726073101570,0.000819,57156.0,57150.0,0.144]
[1726073101786,0.000819,57156.0,57152.0,0.05192179]
[1726073101787,0.3113401,57156.0,57152.0,0.05192179]
[1726073102006,0.3113401,57156.0,57153.0,0.05192179]
[1726073102007,0.174966,57154.0,57153.0,0.05192179]
[1726073102245,0.6612631,57156.0,57152.0,0.112977]
[1726073102246,0.3113401,57156.0,57152.0,0.112977]
[1726073102494,0.000819,57156.0,57155.0,0.174962]
[1726073102753,0.000819,57156.0,57154.0,0.05191051]
[1726073102968,0.03113401,57155.0,57154.0,0.174964]
[1726073103182,0.000819,57156.0,57154.0,0.05191051]
[1726073103435,0.175779,57156.0,57154.0,0.05191051]
[1726073103657,0.000819,57156.0,57155.0,0.349925]
[1726073103885,0.02825391,57156.0,57155.0,1.4644185]
[1726073104111,0.02925391,57156.0,57155.0,1.11580548]
[1726073104333,0.02825391,57156.0,57155.0,1.43082664]
[1726073104558,0.02925391,57156.0,57155.0,1.78075164]
[1726073104773,0.02925391,57156.0,57155.0,1.58645352]
[1726073104774,0.03025391,57156.0,57155.0,1.58645352]
[1726073104987,0.03025391,57156.0,57155.0,1.43082664]
[1726073105425,0.03025391,57156.0,57155.0,0.64015529]
[1726073105859,0.03025391,57156.0,57155.0,0.63703479]
[1726073105860,0.03125391,57156.0,57155.0,0.63703479]
[1726073106076,0.03125391,57156.0,57155.0,0.98695979]
[1726073106305,0.03125391,57156.0,57155.0,0.46207279]
[1726073106556,0.06543141,57156.0,57155.0,0.59177889]
[1726073106788,0.06543141,57156.0,57155.0,0.50394689]
[1726073106789,0.24039041,57156.0,57155.0,0.50394689]
[1726073107019,0.94022841,57156.0,57155.0,0.31887279]
[1726073107242,0.59030941,57156.0,57155.0,0.008]
[1726073107456,0.94022841,57156.0,57155.0,0.008]
[1726073108107,0.03125391,57156.0,57155.0,0.008]
[1726073108565,0.20621291,57156.0,57155.0,0.008]
[1726073109011,0.03125391,57156.0,57155.0,0.182962]
[1726073109226,0.03125391,57156.0,57155.0,0.008]
[1726073110105,0.03125391,57156.0,57155.0,0.182962]
[1726073110761,0.03125391,57156.0,57155.0,0.882812]
[1726073110990,0.003819,57156.0,57155.0,1.023712]
[1726073111208,0.003819,57156.0,57155.0,0.323862]
[1726073111446,0.003819,57156.0,57155.0,0.1489]
[1726073111664,0.178778,57156.0,57155.0,0.1489]
[1726073111881,0.528697,57156.0,57155.0,0.008]
[1726073112101,0.527697,57156.0,57155.0,0.004]
[1726073112564,0.528697,57156.0,57155.0,0.008]
[1726073112793,0.003819,57156.0,57155.0,0.182962]
[1726073113305,0.001819,57156.0,57155.0,0.004]
[1726073113973,0.000819,57156.0,57152.0,0.349939]
[1726073114191,0.000819,57156.0,57155.0,0.174962]
[1726073114428,0.02825461,57156.0,57155.0,0.260062]
[1726073114646,0.02825461,57156.0,57155.0,0.609987]
[1726073114863,0.02825461,57156.0,57155.0,0.957912]
[1726073115103,0.02825461,57156.0,57155.0,1.020312]
[1726073115332,0.02925461,57156.0,57155.0,1.018312]
[1726073115544,0.03025461,57156.0,57155.0,1.022312]
[1726073116196,0.02925461,57156.0,57155.0,1.372237]
[1726073116421,0.6628604,57172.0,57169.0,0.174919]
[1726073116422,0.3130384,57172.0,57169.0,0.174919]
[1726073116640,0.3130384,57172.0,57169.0,0.1406]
[1726073116938,0.0025173,57172.0,57171.0,0.174913]
[1726073117373,0.0025173,57172.0,57169.0,0.1406]
[1726073117374,0.3130384,57172.0,57169.0,0.1406]
[1726073117590,0.3130384,57172.0,57169.0,0.490434]
[1726073117591,0.0025173,57172.0,57169.0,0.490434]
[1726073117805,0.3130384,57172.0,57169.0,0.1406]
[1726073118038,0.174914,57171.0,57169.0,0.1406]
[1726073118249,0.174916,57170.0,57169.0,0.0763]
[1726073118677,0.20234542,57170.0,57169.0,0.0763]
[1726073118895,0.20234542,57170.0,57169.0,0.0903]
[1726073119104,0.02742942,57170.0,57169.0,0.0903]
[1726073119318,0.02742942,57170.0,57169.0,0.0943]
[1726073119729,0.02742942,57170.0,57169.0,0.0803]
[1726073119940,0.55317842,57170.0,57169.0,0.0943]
[1726073120151,0.90301142,57170.0,57169.0,0.018]
[1726073120359,0.175916,57170.0,57169.0,0.018]
[1726073120773,0.175916,57170.0,57169.0,0.014]
[1726073120986,0.175916,57170.0,57169.0,0.028]
[1726073121219,0.001,57170.0,57169.0,0.028]
[1726073121437,0.3138574,57172.0,57171.0,0.174913]
[1726073121645,0.0033363,57172.0,57171.0,0.52474]
[1726073122062,0.0033363,57172.0,57171.0,0.174913]
[1726073122271,0.0033363,57172.0,57171.0,0.52474]
[1726073122483,0.0033363,57172.0,57171.0,0.174913]
[1726073122941,0.0043363,57172.0,57171.0,0.188913]
[1726073123186,0.0033363,57172.0,57171.0,0.874567]
[1726073123632,0.03076268,57172.0,57171.0,0.0757]
[1726073123847,0.34128378,57172.0,57163.0,0.1397]
[1726073124063,0.34128378,57172.0,57164.0,0.174934]